[Event "Cracovia Festival-A 2023"]
[Site "Krakow"]
[Date "2024.01.03"]
[Round "8.34"]
[White "Ramirez Garcia, Jorge Alberto"]
[Black "Jedraszek, Pawel"]
[Result "1-0"]
[ECO "C55"]
[WhiteElo "2249"]
[BlackElo "2124"]
[Annotator "RC"]
[PlyCount "97"]
[EventDate "2023.12.24"]
[EventType "swiss"]
[EventCountry "POL"]
[SourceTitle "playchess.com"]
[Source "ChessBase"]
[SourceQuality "1"]
[TimeControl "40/5400+30:1800+30"]

1. e4 {[%emt 0:03:29]} e5 {[%emt 0:00:18]} 2. Nf3 {[%emt 0:00:06]} Nc6 {[%emt 0:00:05]} 3. d4 {[%emt 0:00:04]} exd4 {[%emt 0:00:04]} 4. Bc4 {[%emt 0:00:03]} Nf6 {[%emt 0:00:14]} 5. e5 {[%emt 0:00:17]} d5 {[%emt 0:00:25]} 6. Bb5 {[%emt 0:00:08]} Ne4 {[%emt 0:00:09]} 7. Nxd4 {[%emt 0:00:08]} Bd7 {[%emt 0:00:36]} 8. Bxc6 {[%emt 0:00:07]} bxc6 {[%emt 0:00:05]} 9. O-O {[%emt 0:01:44]} Bc5 {[%emt 0:02:33]} 10. f3 {[%emt 0:01:13]} Ng5 {[%emt 0:00:39]} 11. f4 {[%emt 0:00:09]} Ne4 {[%emt 0:05:29]} 12. Be3 {[%emt 0:00:05]} Qe7 {[%emt 0:04:33]} 13. Nd2 {[%emt 0:01:41]} Nxd2 {[%emt 0:04:16]} 14. Qxd2 {[%emt 0:00:08]} O-O {[%emt 0:02:06]} 15. Nb3 {[%emt 0:00:29]} Bb6 {[%emt 0:02:56]} 16. Rae1 {[%emt 0:01:00]} Bf5 {[%emt 0:15:09]} 17. Qc3 {[%emt 0:01:21]} Qd7 {[%emt 0:08:29]} 18. Bc5 {[%emt 0:01:07]} Rfe8 {[%emt 0:02:18]} 19. Nd4 {[%emt 0:00:21]} Be4 {[%emt 0:03:10]} 20. Re3 {[%emt 0:04:05]} f6 {[%emt 0:05:23]} 21. e6 {[%emt 0:12:54]} Rxe6 {[%emt 0:00:13]} 22. Nxe6 {[%emt 0:00:27]} Qxe6 {[%emt 0:00:03]} 23. Rf2 {[%emt 0:00:55]} Rd8 {[%emt 0:06:43]} 24. Qd4 {[%emt 0:00:27]} Kf7 {[%emt 0:09:17]} 25. c3 {[%emt 0:27:30]} Rb8 {[%emt 0:04:07]} 26. b4 {[%emt 0:01:36]} a5 {[%emt 0:07:51]} 27. h3 {[%emt 0:09:09]} f5 {[%emt 0:02:18]} 28. a4 {[%emt 0:06:05]} Qf6 {[%emt 0:07:52]} 29. Bxb6 {[%emt 0:00:11]} cxb6 {[%emt 0:00:14]} 30. Rb2 {[%emt 0:00:40]} axb4 {[%emt 0:01:09]} 31. Qxf6+ {[%emt 0:04:43]} Kxf6 {[%emt 0:00:19]} 32. Rxb4 {[%emt 0:02:04]} Ke6 {[%emt 0:00:24]} 33. c4 {[%emt 0:03:39]} dxc4 {[%emt 0:03:34]} 34. Rxc4 {[%emt 0:00:04]} c5 {[%emt 0:01:51]} 35. a5 {[%emt 0:00:51]} bxa5 {[%emt 0:02:36]} 36. Rxc5 {[%emt 0:00:01]} Ra8 {[%emt 0:00:28]} 37. Ra3 {[%emt 0:00:51]} a4 {[%emt 0:00:12]} 38. Rc4 {[%emt 0:00:21]} Kf6 {[%emt 0:00:49]} 39. Rcxa4 {[%emt 0:00:24]} Rd8 {[%emt 0:00:30]} 40. Ra6+ {[%emt 0:00:00]} Kf7 {[%emt 0:00:00]} 41. Ra7+ {[%emt 0:00:33]} Kg8 {[%emt 0:01:49]} 42. Rg3 {[%emt 0:04:51]} g6 {[%emt 0:00:04]} 43. Rc3 {[%emt 0:00:20]} Rb8 {[%emt 0:02:38]} 44. Rcc7 {[%emt 0:00:54]} Bd5 {[%emt 0:00:37]} 45. Rxh7 {[%emt 0:01:47]} Rb2 {[%emt 0:00:56]} 46. Rhg7+ {[%emt 0:00:18]} Kh8 {[%emt 0:00:17]} 47. Rh7+ {[%emt 0:01:46]} Kg8 {[%emt 0:00:02]} 48. Rag7+ {[%emt 0:00:11]} Kf8 {[%emt 0:00:03]} 49. Rxg6 {[%emt 0:00:17]} 1-0

[Event "Cracovia Festival-A 2023"]
[Site "Krakow"]
[Date "2024.01.03"]
[Round "8.35"]
[White "Zarnowski, Krzysztof"]
[Black "Wojdak, Jan"]
[Result "1/2-1/2"]
[ECO "D76"]
[WhiteElo "2114"]
[BlackElo "2219"]
[Annotator "RC"]
[PlyCount "177"]
[EventDate "2023.12.24"]
[EventType "swiss"]
[EventCountry "POL"]
[SourceTitle "playchess.com"]
[Source "ChessBase"]
[SourceQuality "1"]
[TimeControl "40/5400+30:1800+30"]

1. d4 {[%emt 0:02:09]} Nf6 {[%emt 0:00:22]} 2. Nf3 {[%emt 0:00:33]} g6 {[%emt 0:00:22]} 3. g3 {[%emt 0:01:30]} Bg7 {[%emt 0:00:05]} 4. Bg2 {[%emt 0:00:02]} O-O {[%emt 0:00:07]} 5. c4 {[%emt 0:00:49]} d5 {[%emt 0:00:16]} 6. cxd5 {[%emt 0:02:59]} Nxd5 {[%emt 0:00:35]} 7. O-O {[%emt 0:00:23]} Nb6 {[%emt 0:00:08]} 8. Qc2 {[%emt 0:07:25]} Nc6 {[%emt 0:01:51]} 9. Rd1 {[%emt 0:01:08]} a5 {[%emt 0:10:04]} 10. Bf4 {[%emt 0:04:29]} Bf5 {[%emt 0:02:54]} 11. Qc1 {[%emt 0:03:55]} Nd5 {[%emt 0:19:40]} 12. Nc3 {[%emt 0:09:52]} Nxf4 {[%emt 0:00:58]} 13. Qxf4 {[%emt 0:01:00]} Qd6 {[%emt 0:07:49]} 14. Rac1 {[%emt 0:11:54]} Qxf4 {[%emt 0:06:14]} 15. gxf4 {[%emt 0:00:04]} Rfd8 {[%emt 0:00:33]} 16. e3 {[%emt 0:05:47]} Rac8 {[%emt 0:14:14]} 17. a3 {[%emt 0:06:01]} Bg4 {[%emt 0:09:52]} 18. Na4 {[%emt 0:02:02]} Nb8 {[%emt 0:02:40]} 19. Rd3 {[%emt 0:02:09]} Nd7 {[%emt 0:04:12]} 20. Rdc3 {[%emt 0:02:50]} c6 {[%emt 0:01:06]} 21. Nd2 {[%emt 0:03:16]} Be6 {[%emt 0:06:42]} 22. Nb3 {[%emt 0:05:57]} b5 {[%emt 0:04:38]} 23. Nac5 {[%emt 0:00:29]} Nxc5 {[%emt 0:01:00]} 24. Nxc5 {[%emt 0:00:11]} b4 {[%emt 0:00:12]} 25. R3c2 {[%emt 0:02:50]} Bf5 {[%emt 0:00:25]} 26. Rd2 {[%emt 0:03:00]} bxa3 {[%emt 0:00:32]} 27. bxa3 {[%emt 0:00:12]} g5 {[%emt 0:01:07]} 28. fxg5 {[%emt 0:06:46]} e5 {[%emt 0:00:01]} 29. Nb7 {[%emt 0:00:13]} Rd7 {[%emt 0:00:24]} 30. Rxc6 {[%emt 0:08:12]} Rb8 {[%emt 0:00:18]} 31. Rb6 {[%emt 0:04:19]} exd4 {[%emt 0:01:21]} 32. exd4 {[%emt 0:00:57]} Rc7 {[%emt 0:03:30]} 33. h4 {[%emt 0:01:19]} Bc8 {[%emt 0:00:19]} 34. Rb5 {[%emt 0:01:42]} Bxb7 {[%emt 0:00:55]} 35. Rdb2 {[%emt 0:00:15]} Bxd4 {[%emt 0:01:02]} 36. Rxb7 {[%emt 0:00:04]} Rbxb7 {[%emt 0:01:04]} 37. Rxb7 {[%emt 0:00:04]} Rc2 {[%emt 0:00:53]} 38. h5 {[%emt 0:01:34]} Rxf2 {[%emt 0:00:28]} 39. Rb8+ {[%emt 0:00:57]} Kg7 {[%emt 0:00:02]} 40. h6+ {[%emt 0:00:00]} Kg6 {[%emt 0:00:00]} 41. Rd8 {[%emt 0:09:14]} Rf4+ {[%emt 0:01:10]} 42. Kh2 {[%emt 0:00:24]} Kxg5 {[%emt 0:00:47]} 43. Rd5+ {[%emt 0:00:43]} f5 {[%emt 0:06:55]} 44. Bh3 {[%emt 0:00:25]} Bc3 {[%emt 0:01:20]} 45. Rc5 {[%emt 0:01:15]} Rf2+ {[%emt 0:06:35]} 46. Kg1 {[%emt 0:00:07]} Bd4 {[%emt 0:01:26]} 47. Rxa5 {[%emt 0:06:11]} Kh4 {[%emt 0:05:34]} 48. Rd5 {[%emt 0:03:02]} Rd2+ {[%emt 0:01:13]} 49. Kf1 {[%emt 0:00:06]} Kxh3 {[%emt 0:00:56]} 50. Rxf5 {[%emt 0:00:22]} Kg4 {[%emt 0:06:35]} 51. Rf7 {[%emt 0:00:14]} Be3 {[%emt 0:00:17]} 52. Rxh7 {[%emt 0:01:32]} Kf3 {[%emt 0:00:09]} 53. Rf7+ {[%emt 0:00:42]} Bf4 {[%emt 0:00:08]} 54. Ke1 {[%emt 0:00:20]} Rc2 {[%emt 0:00:49]} 55. Rd7 {[%emt 0:00:56]} Bxh6 {[%emt 0:00:34]} 56. Rd8 {[%emt 0:03:39]} Rc3 {[%emt 0:02:48]} 57. a4 {[%emt 0:00:35]} Rc1+ {[%emt 0:00:31]} 58. Rd1 {[%emt 0:00:04]} Rc4 {[%emt 0:00:02]} 59. Rd8 {[%emt 0:00:25]} Rxa4 {[%emt 0:00:12]} 60. Kd1 {[%emt 0:00:13]} Rc4 {[%emt 0:00:09]} 61. Ke1 {[%emt 0:00:25]} Rc7 {[%emt 0:00:44]} 62. Rd3+ {[%emt 0:00:57]} Be3 {[%emt 0:00:08]} 63. Rd8 {[%emt 0:00:23]} Rc1+ {[%emt 0:00:50]} 64. Rd1 {[%emt 0:00:05]} Rc8 {[%emt 0:00:57]} 65. Rd7 {[%emt 0:00:10]} Ke4 {[%emt 0:00:15]} 66. Ke2 {[%emt 0:01:29]} Rc2+ {[%emt 0:00:10]} 67. Kd1 {[%emt 0:01:03]} Rg2 {[%emt 0:00:24]} 68. Re7+ {[%emt 0:03:09]} Kd3 {[%emt 0:00:05]} 69. Rd7+ {[%emt 0:00:31]} Bd4 {[%emt 0:00:05]} 70. Re7 {[%emt 0:00:09]} Rg8 {[%emt 0:01:23]} 71. Re6 {[%emt 0:00:27]} Ra8 {[%emt 0:01:34]} 72. Rc6 {[%emt 0:00:11]} Rf8 {[%emt 0:01:31]} 73. Re6 {[%emt 0:00:21]} Rf1+ {[%emt 0:00:35]} 74. Re1 {[%emt 0:00:05]} Rf2 {[%emt 0:00:08]} 75. Re8 {[%emt 0:00:13]} Ra2 {[%emt 0:01:01]} 76. Rc8 {[%emt 0:00:19]} Rd2+ {[%emt 0:00:16]} 77. Ke1 {[%emt 0:00:48]} Rb2 {[%emt 0:01:10]} 78. Kd1 {[%emt 0:01:35]} Rb7 {[%emt 0:00:02]} 79. Rc6 {[%emt 0:00:21]} Rg7 {[%emt 0:00:26]} 80. Re6 {[%emt 0:00:11]} Rg1+ {[%emt 0:00:55]} 81. Re1 {[%emt 0:00:02]} Rg2 {[%emt 0:00:06]} 82. Re8 {[%emt 0:00:09]} Rg7 {[%emt 0:00:21]} 83. Re6 {[%emt 0:00:14]} Ra7 {[%emt 0:00:36]} 84. Rc6 {[%emt 0:00:05]} Ra2 {[%emt 0:00:35]} 85. Rc8 {[%emt 0:00:13]} Rd2+ {[%emt 0:00:28]} 86. Ke1 {[%emt 0:00:37]} Rg2 {[%emt 0:00:50]} 87. Rf8 {[%emt 0:00:09]} Re2+ {[%emt 0:00:18]} 88. Kd1 {[%emt 0:01:18]} Ra2 {[%emt 0:00:21]} 89. Rc8 1/2-1/2

[Event "Cracovia Festival-A 2023"]
[Site "Krakow"]
[Date "2024.01.03"]
[Round "8.36"]
[White "Hryharovich, Aliaksei"]
[Black "van der Merwe, Alexander"]
[Result "1/2-1/2"]
[ECO "D91"]
[WhiteElo "2195"]
[BlackElo "2113"]
[Annotator "RC"]
[PlyCount "130"]
[EventDate "2023.12.24"]
[EventType "swiss"]
[EventCountry "POL"]
[SourceTitle "playchess.com"]
[Source "ChessBase"]
[SourceQuality "1"]
[TimeControl "40/5400+30:1800+30"]

1. d4 {[%emt 0:00:04]} Nf6 {[%emt 0:00:04]} 2. c4 {[%emt 0:00:08]} g6 {[%emt 0:00:07]} 3. Nc3 {[%emt 0:00:10]} d5 {[%emt 0:00:06]} 4. Nf3 {[%emt 0:00:56]} Bg7 {[%emt 0:00:05]} 5. Bg5 {[%emt 0:00:20]} Ne4 {[%emt 0:00:22]} 6. cxd5 {[%emt 0:00:48]} Nxg5 {[%emt 0:00:42]} 7. Nxg5 {[%emt 0:00:11]} e6 {[%emt 0:00:07]} 8. Nf3 {[%emt 0:01:23]} exd5 {[%emt 0:00:52]} 9. e3 {[%emt 0:00:12]} c6 {[%emt 0:02:59]} 10. Bd3 {[%emt 0:01:08]} a5 {[%emt 0:01:57]} 11. O-O {[%emt 0:00:43]} O-O {[%emt 0:00:31]} 12. h3 {[%emt 0:01:35]} Nd7 {[%emt 0:07:30]} 13. Qc2 {[%emt 0:00:48]} Nf6 {[%emt 0:01:11]} 14. a3 {[%emt 0:02:00]} Qe7 {[%emt 0:00:54]} 15. Rab1 {[%emt 0:03:33]} Re8 {[%emt 0:05:17]} 16. Nd2 {[%emt 0:01:18]} Be6 {[%emt 0:14:17]} 17. Rfe1 {[%emt 0:08:35]} Nd7 {[%emt 0:02:51]} 18. b4 {[%emt 0:03:35]} axb4 {[%emt 0:01:14]} 19. axb4 {[%emt 0:00:11]} Rec8 {[%emt 0:02:55]} 20. Na4 {[%emt 0:17:58]} b6 {[%emt 0:02:30]} 21. Rec1 {[%emt 0:02:31]} Qd6 {[%emt 0:06:42]} 22. Nf3 {[%emt 0:03:29]} h6 {[%emt 0:00:43]} 23. Qb3 {[%emt 0:10:53]} Rab8 {[%emt 0:10:50]} 24. Qd1 {[%emt 0:02:55]} Bf8 {[%emt 0:03:23]} 25. Qc2 {[%emt 0:01:37]} Ra8 {[%emt 0:02:17]} 26. Kh1 {[%emt 0:09:41]} Be7 {[%emt 0:01:05]} 27. Nc3 {[%emt 0:04:20]} Kg7 {[%emt 0:03:57]} 28. Kg1 {[%emt 0:02:24]} f5 {[%emt 0:07:55]} 29. Ne2 {[%emt 0:00:56]} Bf7 {[%emt 0:01:33]} 30. Nf4 {[%emt 0:01:46]} Bf6 {[%emt 0:00:59]} 31. g4 {[%emt 0:02:03]} fxg4 {[%emt 0:05:03]} 32. hxg4 {[%emt 0:02:42]} Nf8 {[%emt 0:01:53]} 33. Ra1 {[%emt 0:03:51]} Rxa1 {[%emt 0:04:09]} 34. Rxa1 {[%emt 0:00:06]} Qd7 {[%emt 0:00:12]} 35. Kh2 {[%emt 0:01:42]} c5 {[%emt 0:02:57]} 36. bxc5 {[%emt 0:01:12]} bxc5 {[%emt 0:00:39]} 37. Qe2 {[%emt 0:02:17]} cxd4 {[%emt 0:01:22]} 38. Nxd4 {[%emt 0:01:42]} Qd6 {[%emt 0:01:25]} 39. Ra6 {[%emt 0:01:08]} Qb8 {[%emt 0:02:26]} 40. Nc6 {[%emt 0:00:00]} Rxc6 {[%emt 0:00:00]} 41. Rxc6 {[%emt 0:07:08]} g5 {[%emt 0:03:29]} 42. Kg1 {[%emt 0:09:06]} gxf4 {[%emt 0:00:35]} 43. Bf5 {[%emt 0:01:06]} Qe5 {[%emt 0:03:18]} 44. Qf3 {[%emt 0:04:21]} fxe3 {[%emt 0:03:30]} 45. Qxe3 {[%emt 0:02:29]} Qa1+ {[%emt 0:01:14]} 46. Kh2 {[%emt 0:02:13]} d4 {[%emt 0:10:14]} 47. Qf3 {[%emt 0:04:47]} Qa5 {[%emt 0:03:42]} 48. Be4 {[%emt 0:01:11]} Qe5+ {[%emt 0:00:07]} 49. Kg1 {[%emt 0:00:47]} Qe7 {[%emt 0:02:55]} 50. Rb6 {[%emt 0:01:12]} Ne6 {[%emt 0:02:08]} 51. Qf5 {[%emt 0:04:42]} Ng5 {[%emt 0:00:06]} 52. Bd5 {[%emt 0:00:19]} Nh3+ {[%emt 0:06:27]} 53. Kf1 {[%emt 0:01:43]} Nf4 {[%emt 0:00:21]} 54. Be4 {[%emt 0:02:30]} Bg6 {[%emt 0:00:15]} 55. Qxf4 {[%emt 0:00:18]} Bxe4 {[%emt 0:00:05]} 56. Kg1 {[%emt 0:00:52]} Bd5 {[%emt 0:00:40]} 57. Rb1 {[%emt 0:00:38]} Qe4 {[%emt 0:01:38]} 58. Qxe4 {[%emt 0:00:35]} Bxe4 {[%emt 0:00:02]} 59. Rd1 {[%emt 0:00:39]} Bf3 {[%emt 0:00:10]} 60. Rd3 {[%emt 0:00:27]} Be2 {[%emt 0:00:18]} 61. Ra3 {[%emt 0:00:18]} d3 {[%emt 0:00:27]} 62. Ra7+ {[%emt 0:00:02]} Kg6 {[%emt 0:00:23]} 63. Rd7 {[%emt 0:00:07]} Bc3 {[%emt 0:00:23]} 64. Rd6+ {[%emt 0:01:08]} Kg7 {[%emt 0:00:07]} 65. Rd7+ {[%emt 0:00:22]} Kf8 {[%emt 0:00:12]} 1/2-1/2

[Event "Cracovia Festival-A 2023"]
[Site "Krakow"]
[Date "2024.01.03"]
[Round "8.37"]
[White "Bilczewski, Kacper"]
[Black "Janzelj, Tim"]
[Result "1-0"]
[ECO "C41"]
[WhiteElo "2125"]
[BlackElo "2441"]
[Annotator "RC"]
[PlyCount "117"]
[EventDate "2023.12.24"]
[EventType "swiss"]
[EventCountry "POL"]
[SourceTitle "playchess.com"]
[Source "ChessBase"]
[SourceQuality "1"]
[TimeControl "40/5400+30:1800+30"]

1. e4 {[%emt 0:07:51]} d6 {[%emt 0:03:24]} 2. Nf3 {[%emt 0:00:41]} Nf6 {[%emt 0:00:17]} 3. Nc3 {[%emt 0:02:15]} e5 {[%emt 0:01:14]} 4. d4 {[%emt 0:00:06]} Nbd7 {[%emt 0:00:07]} 5. g3 {[%emt 0:00:09]} c6 {[%emt 0:00:17]} 6. Bg2 {[%emt 0:00:04]} b5 {[%emt 0:00:22]} 7. O-O {[%emt 0:00:47]} Be7 {[%emt 0:01:17]} 8. a3 {[%emt 0:00:34]} O-O {[%emt 0:00:38]} 9. h3 {[%emt 0:00:03]} Bb7 {[%emt 0:00:27]} 10. Be3 {[%emt 0:00:29]} a5 {[%emt 0:01:59]} 11. Nh4 {[%emt 0:04:09]} Re8 {[%emt 0:05:45]} 12. Nf5 {[%emt 0:01:18]} Bf8 {[%emt 0:00:10]} 13. g4 {[%emt 0:04:18]} exd4 {[%emt 0:03:17]} 14. Qxd4 {[%emt 0:02:17]} c5 {[%emt 0:07:48]} 15. Qd1 {[%emt 0:01:38]} Qb6 {[%emt 0:02:12]} 16. Nd5 {[%emt 0:05:31]} Qc6 {[%emt 0:06:00]} 17. Ng3 {[%emt 0:00:09]} g6 {[%emt 0:02:03]} 18. g5 {[%emt 0:05:23]} Nxd5 {[%emt 0:00:11]} 19. exd5 {[%emt 0:00:05]} Qc7 {[%emt 0:00:34]} 20. Ne4 {[%emt 0:00:08]} Re5 {[%emt 0:02:55]} 21. Qg4 {[%emt 0:04:38]} Rf5 {[%emt 0:05:24]} 22. Rad1 {[%emt 0:09:21]} Re8 {[%emt 0:05:11]} 23. Bf4 {[%emt 0:12:34]} Bc8 {[%emt 0:12:11]} 24. Qg3 {[%emt 0:02:43]} Ne5 {[%emt 0:04:33]} 25. Nf6+ {[%emt 0:00:46]} Rxf6 {[%emt 0:00:05]} 26. gxf6 {[%emt 0:00:05]} Qd8 {[%emt 0:01:32]} 27. Rfe1 {[%emt 0:05:26]} Bf5 {[%emt 0:10:15]} 28. Bxe5 {[%emt 0:01:48]} dxe5 {[%emt 0:00:10]} 29. Rxe5 {[%emt 0:01:01]} Rxe5 {[%emt 0:00:07]} 30. Qxe5 {[%emt 0:00:10]} Bd6 {[%emt 0:00:34]} 31. Qc3 {[%emt 0:04:20]} b4 {[%emt 0:00:19]} 32. axb4 {[%emt 0:00:06]} axb4 {[%emt 0:00:01]} 33. Qe3 {[%emt 0:00:30]} Qxf6 {[%emt 0:13:17]} 34. c3 {[%emt 0:00:39]} b3 {[%emt 0:00:05]} 35. Ra1 {[%emt 0:02:34]} Kg7 {[%emt 0:00:15]} 36. Ra7 {[%emt 0:05:14]} Bc2 {[%emt 0:05:51]} 37. Rb7 {[%emt 0:03:50]} h5 {[%emt 0:04:14]} 38. Qf3 {[%emt 0:09:14]} Bf4 {[%emt 0:02:12]} 39. d6 {[%emt 0:02:59]} Qxd6 {[%emt 0:00:27]} 40. Qd5 {[%emt 0:00:00]} Qf6 {[%emt 0:00:00]} 41. Qxc5 {[%emt 0:03:34]} Bc1 {[%emt 0:01:22]} 42. Qd4 {[%emt 0:01:18]} Bxb2 {[%emt 0:02:34]} 43. Bd5 {[%emt 0:01:37]} Qxd4 {[%emt 0:00:11]} 44. cxd4 {[%emt 0:00:08]} Bxd4 {[%emt 0:01:17]} 45. Bxf7 {[%emt 0:01:41]} Kh6 {[%emt 0:00:25]} 46. Bxb3 {[%emt 0:00:08]} Bf5 {[%emt 0:00:03]} 47. Rb4 {[%emt 0:01:53]} Bf6 {[%emt 0:01:59]} 48. Kg2 {[%emt 0:01:23]} Be7 {[%emt 0:00:45]} 49. Ra4 {[%emt 0:00:17]} Kg7 {[%emt 0:01:10]} 50. Bd5 {[%emt 0:00:36]} Bc5 {[%emt 0:02:22]} 51. f3 {[%emt 0:01:35]} Bd7 {[%emt 0:08:35]} 52. Ra5 {[%emt 0:01:12]} Be3 {[%emt 0:00:36]} 53. Be4 {[%emt 0:01:12]} Bc8 {[%emt 0:03:17]} 54. Ra3 {[%emt 0:00:43]} Bd4 {[%emt 0:01:07]} 55. Ra4 {[%emt 0:01:16]} Bb6 {[%emt 0:05:33]} 56. Rc4 {[%emt 0:00:38]} Bf5 {[%emt 0:01:10]} 57. Bxf5 {[%emt 0:00:31]} gxf5 {[%emt 0:00:01]} 58. Rc6 {[%emt 0:00:07]} Bd4 {[%emt 0:00:13]} 59. Kg3 {[%emt 0:00:14]} 1-0

[Event "Cracovia Festival-A 2023"]
[Site "Krakow"]
[Date "2024.01.03"]
[Round "8.38"]
[White "Luczak, Filip"]
[Black "Leskiewicz, Ignacy"]
[Result "0-1"]
[ECO "A45"]
[WhiteElo "2319"]
[BlackElo "2177"]
[Annotator "RC"]
[PlyCount "114"]
[EventDate "2023.12.24"]
[EventType "swiss"]
[EventCountry "POL"]
[SourceTitle "playchess.com"]
[Source "ChessBase"]
[SourceQuality "1"]
[TimeControl "40/5400+30:1800+30"]

1. d4 {[%emt 0:00:03]} Nf6 {[%emt 0:03:07]} 2. Nc3 {[%emt 0:00:01]} e6 {[%emt 0:00:33]} 3. Bf4 {[%emt 0:00:14]} Bb4 {[%emt 0:00:49]} 4. e3 {[%emt 0:00:03]} b6 {[%emt 0:00:54]} 5. Nge2 {[%emt 0:04:31]} Bb7 {[%emt 0:04:17]} 6. a3 {[%emt 0:00:05]} Be7 {[%emt 0:00:34]} 7. Ng3 {[%emt 0:03:59]} d5 {[%emt 0:04:06]} 8. Nb5 {[%emt 0:03:20]} Na6 {[%emt 0:00:36]} 9. Bd3 {[%emt 0:00:25]} c6 {[%emt 0:09:20]} 10. Nc3 {[%emt 0:00:09]} c5 {[%emt 0:07:03]} 11. Bb5+ {[%emt 0:05:58]} Kf8 {[%emt 0:06:24]} 12. Nh5 {[%emt 0:11:59]} Nc7 {[%emt 0:07:33]} 13. Bd3 {[%emt 0:03:18]} c4 {[%emt 0:07:51]} 14. Be2 {[%emt 0:00:28]} Nxh5 {[%emt 0:00:17]} 15. Bxh5 {[%emt 0:00:07]} Bd6 {[%emt 0:00:49]} 16. O-O {[%emt 0:06:59]} Bxf4 {[%emt 0:04:12]} 17. exf4 {[%emt 0:00:03]} g6 {[%emt 0:01:47]} 18. Bf3 {[%emt 0:00:23]} Qd6 {[%emt 0:01:38]} 19. Qd2 {[%emt 0:00:58]} Kg7 {[%emt 0:02:19]} 20. g3 {[%emt 0:02:13]} a5 {[%emt 0:05:50]} 21. h4 {[%emt 0:00:39]} h5 {[%emt 0:00:16]} 22. Nd1 {[%emt 0:04:25]} b5 {[%emt 0:01:58]} 23. Ne3 {[%emt 0:00:08]} Ra7 {[%emt 0:12:57]} 24. Kg2 {[%emt 0:02:16]} Rha8 {[%emt 0:03:57]} 25. g4 {[%emt 0:11:57]} b4 {[%emt 0:01:09]} 26. gxh5 {[%emt 0:04:09]} Qxf4 {[%emt 0:01:55]} 27. axb4 {[%emt 0:15:51]} e5 {[%emt 0:00:01]} 28. Rad1 {[%emt 0:09:49]} Ne6 {[%emt 0:01:03]} 29. Nxd5 {[%emt 0:05:08]} Qxd2 {[%emt 0:04:18]} 30. Rxd2 {[%emt 0:00:01]} Bxd5 {[%emt 0:00:09]} 31. Bxd5 {[%emt 0:00:02]} Nf4+ {[%emt 0:00:07]} 32. Kf3 {[%emt 0:00:35]} Nxd5 {[%emt 0:00:07]} 33. dxe5 {[%emt 0:00:04]} Nxb4 {[%emt 0:00:18]} 34. hxg6 {[%emt 0:00:11]} fxg6 {[%emt 0:02:00]} 35. h5 {[%emt 0:02:01]} Rf8+ {[%emt 0:05:53]} 36. Ke4 {[%emt 0:02:57]} g5 {[%emt 0:00:40]} 37. f4 {[%emt 0:01:19]} gxf4 {[%emt 0:01:16]} 38. Rxf4 {[%emt 0:01:40]} Rxf4+ {[%emt 0:00:42]} 39. Kxf4 {[%emt 0:00:01]} a4 {[%emt 0:00:37]} 40. h6+ {[%emt 0:00:00]} Kxh6 {[%emt 0:00:00]} 41. Rd4 {[%emt 0:08:07]} Rc7 {[%emt 0:02:27]} 42. c3 {[%emt 0:02:02]} Nd3+ {[%emt 0:01:29]} 43. Kf5 {[%emt 0:00:05]} Kg7 {[%emt 0:13:14]} 44. Rg4+ {[%emt 0:01:42]} Kf8 {[%emt 0:07:33]} 45. e6 {[%emt 0:00:35]} Ke7 {[%emt 0:02:41]} 46. Rg7+ {[%emt 0:01:49]} Kd6 {[%emt 0:00:01]} 47. Rg4 {[%emt 0:06:21]} Nxb2 {[%emt 0:02:29]} 48. Kf6 {[%emt 0:00:42]} a3 {[%emt 0:01:04]} 49. Rg8 {[%emt 0:00:23]} Na4 {[%emt 0:01:56]} 50. Rd8+ {[%emt 0:01:55]} Kc5 {[%emt 0:01:24]} 51. e7 {[%emt 0:05:03]} Rxe7 {[%emt 0:00:04]} 52. Kxe7 {[%emt 0:00:07]} Nxc3 {[%emt 0:00:23]} 53. Ke6 {[%emt 0:02:38]} a2 {[%emt 0:00:22]} 54. Ra8 {[%emt 0:00:18]} Kb4 {[%emt 0:00:09]} 55. Rb8+ {[%emt 0:00:31]} Nb5 {[%emt 0:00:10]} 56. Ra8 {[%emt 0:00:10]} Na3 {[%emt 0:00:05]} 57. Rb8+ {[%emt 0:00:03]} Kc3 {[%emt 0:00:06]} 0-1